Cogmind - Beta 15 @@@ ROGUE MODE // 2025.08.03 @ 00:56:08 Player: surprisinglarge Result: Self-destructed Performance ------------- Evolutions (1) 500 Regions Visited (3) 600 Robots Destroyed (10) 50 Value Destroyed (250) 250 Prototype IDs (1) 20 Alien Tech Used (0) 0 Bonus (0) 0 TOTAL SCORE: 1420 Bonus ------- None Cogmind --------- Core Integrity 227/400 Matter 256/300 Energy 100/100 System Corruption 0% Temperature Cool (9) Movement Core (350) Ox6 Location -9/Materials Parts ------- > --- POWER (1) -------- (None) > --- PROPULSION (3) --- (None) > --- UTILITY (3) ------ Improved Heat Sink Large Storage Unit > --- WEAPON (2) ------- (None) > --- INVENTORY (15) --- (None) Peak State ------------ > --- POWER ------------ Ion Engine > --- PROPULSION ------- Aluminum Leg Aluminum Leg > --- UTILITY ---------- Improved Heat Sink Bomb Drone Bay > --- WEAPON ----------- Assault Rifle Light Cannon > --- INVENTORY -------- Large Storage Unit [Rating: 22] Favorites ----------- Power Ion Engine Engine Ion Engine Propulsion Aluminum Leg Leg Aluminum Leg Utility Bomb Drone Bay Device Bomb Drone Bay Storage Small Storage Unit Protection Light Armor Plating Weapon Assault Rifle Ballistic Gun Assault Rifle Ballistic Cannon Light Cannon Build | -11 -10 -10 -9 ------- Run | Yrd Mat Min Mat Slots Evolved 2 | . . . 2 Power . | . . . . Propulsion 1 | . . . 1 Utility 1 | . . . 1 Weapon . | . . . . Parts Attached 11 | 6 3 1 1 Power 1 | 1 . . . Engine 1 | 1 . . . Core . | . . . . Reactor . | . . . . Propulsion 2 | 2 . . . Treads . | . . . . Leg 2 | 2 . . . Wheel . | . . . . Hover . | . . . . Flight . | . . . . Utility 5 | 1 2 1 1 Device 2 | . . 1 1 Storage 2 | 1 1 . . Processor . | . . . . Hackware . | . . . . Protection 1 | . 1 . . Artifact . | . . . . Weapon 3 | 2 1 . . Energy Gun . | . . . . Energy Cannon . | . . . . Ballistic Gun 2 | 2 . . . Ballistic Cannon 1 | . 1 . . Launcher . | . . . . Special Weapon . | . . . . Impact Weapon . | . . . . Slashing Weapon . | . . . . Piercing Weapon . | . . . . Special Melee Weapon . | . . . . Unidentified Prototypes 1 | . . 1 . Parts Lost 6 | . . . 6 Power 1 | . . . 1 Propulsion 2 | . . . 2 Utility 1 | . . . 1 Weapon 2 | . . . 2 Highest Loss Streak 6 | . . . 6 To Critical Strikes . | . . . . Average Backups 1 | 1 . 2 . Power . | . . . . Propulsion . | . . . . Utility . | . . 1 . Weapon . | . . . . Tool/Special . | . . . . Unused Backups 2 | . . 2 . Power . | . . . . Propulsion 1 | . . 1 . Utility 1 | . . 1 . Weapon . | . . . . Tool/Special . | . . . . Average Slot Usage (%) 84 | . 89 86 63 Engine 13 | . 14 14 7 Leg 26 | . 28 28 19 Device 8 | . . 12 18 Storage 6 | . 14 1 3 Protection 2 | . 4 1 . Ballistic Gun 16 | . 23 14 7 Ballistic Cannon 10 | . 4 14 9 Peak Build Rating 22 | 6 7 19 22 Average Rating 13 | 3 6 18 16 On Entrance 8 | . 6 7 19 Naked Turns . | . . . . Heaviest Build 33 | 14 33 18 24 Greatest Support 20 | 20 20 20 20 Greatest Overweight (x) 6 | . 1 . 6 Average Overweight (x) . | . . . . Largest Inventory Capacity 15 | 8 15 8 15 Average Capacity 7 | 6 9 5 7 Most Carried 5 | 5 2 5 1 Average Carried 1 | 1 . 2 . Final Capacity 15 | 8 8 5 15 Final Carried 2 | . 2 2 . Class Distribution -------------------- 100% | Mutant Dominant Class ---------------- Mutant | -10/Materials Mutant | -10/Mines Mutant | -9/Materials Resources | -11 -10 -10 -9 ----------- Run | Yrd Mat Min Mat Matter Collected 406 | 249 53 92 12 Remotely . | . . . . Salvage Created 353 | . 246 . 107 Parts 15 | . 10 . 5 Haulers Intercepted . | . . . . Recyclers Shooed . | . . . . Parts Field Recycled . | . . . . Retrieved Matter . | . . . . Parts Self-Destructed . | . . . . Prevented . | . . . . Kills | -11 -10 -10 -9 ------- Run | Yrd Mat Min Mat Combat Hostiles Destroyed 8 | . 5 . 3 Guns 6 | . 5 . 1 Cannons 2 | . . . 2 Classes Destroyed 5 | . 4 . 1 Tunneler 1 | . 1 . . Recycler 1 | . 1 . . Swarmer 3 | . 3 . . Grunt 4 | . 2 . 2 Sentry 1 | . . . 1 Best Kill Streak 4 | . 4 . 3 Combat Bots Only 3 | . 3 . 3 Max Kills in Single Turn 2 | . 2 . 1 Gunslinging . | . . . . Exploded . | . . . . Melee . | . . . . Uniques/NPCs Destroyed . | . . . . Combat | -11 -10 -10 -9 -------- Run | Yrd Mat Min Mat Hostile Shots Fired 106 | . 20 . 86 Missed 40 | . 7 . 33 Hits 66 | . 13 . 53 Projectile 66 | . 13 . 53 Critical Strikes 1 | . . . 1 Damage Taken 1175 | . 140 256 779 Core 211 | . 38 . 173 Absorbed by Shields . | . . . . Core Remaining (%) 92 | 100 . 84 . Volleys Fired 25 | . 13 . 12 Largest 2 | . 2 . 2 Hottest 50 | . 50 . 50 Shots Fired 44 | . 26 . 18 Gun 26 | . 20 . 6 Cannon 18 | . 6 . 12 Launcher . | . . . . Special . | . . . . Kinetic 44 | . 26 . 18 Thermal . | . . . . Explosive . | . . . . Electromagnetic . | . . . . Robot Hit Streak 7 | . 5 . 7 Robot Miss Streak 7 | . 7 . 4 Penetration Max . | . . . . Secondary Targets . | . . . . Shots Hit Robots 23 | . 12 . 11 Core Hits 15 | . 9 . 6 Critical Kills 1 | . . . 1 Critical Parts Destroyed . | . . . . Critical Strikes 2 | . . . 2 Destroy 1 | . . . 1 Blast 1 | . . . 1 Melee Attacks . | . . . . Impact . | . . . . Slashing . | . . . . Piercing . | . . . . Sneak Attacks . | . . . . Combat Hostiles . | . . . . Follow-up Attacks . | . . . . Damage Inflicted 394 | . 210 . 184 Guns 179 | . 136 . 43 Cannons 215 | . 74 . 141 Explosions . | . . . . Melee . | . . . . Ramming . | . . . . Kinetic 394 | . 210 . 184 Thermal . | . . . . Explosive . | . . . . Electromagnetic . | . . . . Impact . | . . . . Slashing . | . . . . Piercing . | . . . . Highest Corruption . | . . . . Average Corruption . | . . . . Corruption Purged . | . . . . Corruption Blocked . | . . . . Overload Shots . | . . . . Overflow Damage . | . . . . Projectiles . | . . . . Explosions . | . . . . Melee . | . . . . Knockbacks 1 | . 1 . . Impact . | . . . . Kinetic 1 | . 1 . . Secondary . | . . . . Self-Inflicted Damage . | . . . . Shots . | . . . . Rammed . | . . . . Targets Rammed . | . . . . Kicked . | . . . . Crushed . | . . . . Highest Temperature 36 | . 36 . . Average Temperature 21 | . 21 . . Received Heat Transfer 324 | . 45 . 279 Siege Activations . | . . . . Martial Activations . | . . . . Shielding Activations . | . . . . Robots Disrupted . | . . . . Combat Hostiles . | . . . . Robots Corrupted . | . . . . Combat Hostiles . | . . . . Parts Fried . | . . . . Impact Corruptions . | . . . . Robots Melted . | . . . . Combat Hostiles . | . . . . Parts Melted . | . . . . Heat Transferred . | . . . . Parts Sabotaged . | . . . . Parts Stolen . | . . . . Parts Stripped . | . . . . Power Chain Reactions . | . . . . Alert | -11 -10 -10 -9 ------- Run | Yrd Mat Min Mat Maximum Alert Level . | . . . . Low Security (%) 100 | 100 100 100 100 Level 1 . | . . . . Level 2 . | . . . . Level 3 . | . . . . Level 4 . | . . . . Level 5 . | . . . . High Security . | . . . . Max Security . | . . . . Peak Influence 71 | . 71 19 50 Initial 19 | . . 19 . Average 8 | . 20 1 10 Influence Increases 211 | . 131 . 80 Destroy 0b10 Robot/C 160 | . 100 . 60 Destroy 0b10 Robot/NC 10 | . 10 . . Destroy Leader 40 | . 20 . 20 Destroy Structure 1 | . 1 . . Influence Decreases 211 | . 80 51 80 Entered New Map 32 | . . 32 . Time Decay 119 | . 80 19 20 Lost Part 60 | . . . 60 Squads Dispatched . | . . . . Investigation . | . . . . Extermination . | . . . . Reinforcement . | . . . . Assault . | . . . . Garrison . | . . . . Intercept . | . . . . Searches Triggered . | . . . . Construction Impeded . | . . . . Haulers Reinforced . | . . . . Active Scanning Responses . | . . . . Cargo Convoy Interrupts . | . . . . Stealth | -11 -10 -10 -9 --------- Run | Yrd Mat Min Mat Distress Signals . | . . . . Communications Jammed . | . . . . Distress Signals . | . . . . Times Spotted 21 | . 5 3 13 Peak Tracking Total 8 | . 3 1 8 Tactical Retreats . | . . . . Traps | -11 -10 -10 -9 ------- Run | Yrd Mat Min Mat Traps Triggered . | . . . . Indirectly . | . . . . Trap Hack Attempts . | . . . . Triggered . | . . . . Disarmed . | . . . . Reprogrammed . | . . . . Reused . | . . . . Traps Extracted . | . . . . Installed . | . . . . Triggered . | . . . . Machines | -11 -10 -10 -9 ---------- Run | Yrd Mat Min Mat Machines Disabled . | . . . . Max in Single Turn . | . . . . Machines Repaired . | . . . . Machines Dismantled . | . . . . Machines Sabotaged . | . . . . Overloaded Fab Kills . | . . . . Hacking | -11 -10 -10 -9 --------- Run | Yrd Mat Min Mat Machines Accessed 2 | . . 2 . Terminals . | . . . . Fabricators . | . . . . Repair Stations . | . . . . Recycling Units . | . . . . Scanalyzers . | . . . . Garrison Access . | . . . . Total Hacks 2 | . . 2 . Successful 2 | . . 2 . Failed . | . . . . Catastrophic . | . . . . Database Lockouts . | . . . . Manual . | . . . . Terminals . | . . . . Fabricators . | . . . . Repair Stations . | . . . . Recycling Units . | . . . . Scanalyzers . | . . . . Garrison Access . | . . . . Terminal Hacks 2 | . . 2 . Open Door 2 | . . 2 . Fabricator Hacks . | . . . . Repair Station Hacks . | . . . . Recycling Unit Hacks . | . . . . Scanalyzer . | . . . . Garrison Access Hacks . | . . . . Unauthorized Hacks . | . . . . Terminals . | . . . . Fabricators . | . . . . Repair Stations . | . . . . Recycling Units . | . . . . Scanalyzers . | . . . . Garrison Access . | . . . . Data Cores Recovered . | . . . . Used . | . . . . Hacking Detections . | . . . . Full Trace Events . | . . . . Feedback Events . | . . . . Feedback Blocked . | . . . . Robot Schematics Acquired . | . . . . Robots Built . | . . . . Authchips . | . . . . Time . | . . . . Total Robot Build Rating . | . . . . Part Schematics Acquired . | . . . . Parts Built . | . . . . Authchips . | . . . . Time . | . . . . Total Part Build Rating . | . . . . Parts Repaired . | . . . . Time . | . . . . Parts Recycled . | . . . . Recycled Matter . | . . . . Retrieved Matter . | . . . . Retrieved Components . | . . . . Parts Scanalyzed . | . . . . Part Schematics Acquired . | . . . . Parts Damaged . | . . . . Bothacking | -11 -10 -10 -9 ------------ Run | Yrd Mat Min Mat Used RIF Installer . | . . . . Robots Hacked . | . . . . Non-combat . | . . . . Combat . | . . . . Robot Hacks Applied . | . . . . Relay Couplers Released . | . . . . Fabnet Peak Effective % . | . . . . Robots Rewired . | . . . . Allies Hacked . | . . . . Hacks Repelled . | . . . . Allies | -11 -10 -10 -9 -------- Run | Yrd Mat Min Mat Total Allies . | . . . . Largest Group . | . . . . Highest-Rated Group . | . . . . Highest-Rated Ally . | . . . . Total Orders . | . . . . Ally Attacks 13 | . . 8 5 Total Damage . | . . . . Kills . | . . . . Allies Corrupted . | . . . . Allies Melted . | . . . . Intel | -11 -10 -10 -9 ------- Run | Yrd Mat Min Mat Active Infowar (turns) . | . . . . Robot Analysis Total . | . . . . Derelict Logs Recovered 1 | . . 1 . Drone Launches 16 | . . 16 . Drone Recoveries 1 | . . . 1 Exploration | -11 -10 -10 -9 ------------- Run | Yrd Mat Min Mat Turns Passed 963 | 35 327 499 102 Spaces Moved 705 | 31 216 410 48 Core 20 | 18 . . 2 Treads . | . . . . Legs 685 | 13 216 410 46 Wheels . | . . . . Hover . | . . . . Flight . | . . . . Fastest Speed 50 | 50 120 120 120 Average Speed 122 | 79 129 120 145 Slowest Speed 350 | 120 190 120 350 Overloaded Moves . | . . . . Propulsion Burnouts . | . . . . Robots Hopped . | . . . . Potential Cave-ins . | . . . . Cave-ins Triggered . | . . . . Exploration Rate (%) 34 | 5 26 97 11 Regions Visited 3 Branch Regions 1 Pre-discovered Areas . | . . . . Known Exits Taken . | . . . . Unknown Exits Taken 3 | 1 1 1 . Scrap Searched 2 | . . 2 . Spaces Dug . | . . . . Terrain Destroyed . | . . . . Melee . | . . . . Projectile . | . . . . AOE . | . . . . Terrain Rammed . | . . . . Walls Destroyed . | . . . . Machines Disabled . | . . . . Actions | -11 -10 -10 -9 --------- Run | Yrd Mat Min Mat Total 758 | 41 235 420 62 Wait . | . . . . Move 702 | 30 215 409 48 Hop . | . . . . Pick Up 12 | 5 3 4 . Fast Attach 1 | 1 . . . Attach 9 | 5 1 1 2 Detach 1 | . . 1 . Swap 3 | . 3 . . Drop 5 | . . 5 . Fire 25 | . 13 . 12 Melee . | . . . . Ram . | . . . . Kick . | . . . . Crush . | . . . . Escape Stasis . | . . . . Rewire . | . . . . Trap . | . . . . Miscellaneous . | . . . . Route ------- -11/Scrapyard -10/Materials -10/Mines (discovered 2 exits: [*Mat x2]) -9/Materials (discovered 1 exit: [*Sto]) History --------- Turn | Location | Event 9 | -11/Scrapyard | Discovered new exit (range 15) 36 | -11/Scrapyard | Entered Materials 209 | -10/Materials | Discovered new exit (range 16) 306 | -10/Materials | Build established: Mutant 363 | -10/Materials | Entered Mines 372 | -10/Mines | Discovered new exit (range 14) 393 | -10/Mines | Found the Drone Emporium 396 | -10/Mines | Learned Materials terminal intel 399 | -10/Mines | Found Prototype Device 402 | -10/Mines | Identified Bomb Drone Bay 503 | -10/Mines | Lost 3 allies 615 | -10/Mines | Met a Derelict who couldn't figure out how to use a Trap Extractor 842 | -10/Mines | Discovered new exit (range 10) 862 | -10/Mines | Entered Materials 862 | -9/Materials | Accompanied by 6 allies 862 | -9/Materials | Evolved 2 slots: Propulsion x1, Utility x1 863 | -9/Materials | Loaded intel: 12 terminal locations 863 | -9/Materials | Discovered new exit (range 8) 925 | -9/Materials | Lost 5 allies 964 | -9/Materials | Self-destructed Last Messages --------------- The unstable cave ceiling collapses. Critical hit (Burn: +37). U-05 Engineer lays Concrete. The unstable cave ceiling collapses. U-05 Engineer builds a Wall. Aluminum Leg destroyed. The unstable cave ceiling collapses. Lgt. Cannon destroyed. U-05 Engineer builds a Wall. The unstable cave ceiling collapses. 2 Matter crushed. The unstable cave ceiling collapses. K-01 Serf collects debris. U-05 Engineer builds a Wall. The unstable cave ceiling collapses. 1 Matter crushed. The unstable cave ceiling collapses. Acquired 12 matter. Aluminum Leg destroyed. K-01 Serf collects debris. Map ----- +----------------------------------------------------+ | ?????????????????????????????????????????????????? | | ?????????????????????????????????????????????????? | | ?????????????????????????????????????????????????? | | ?????????????????????????????????????????????????? | | ?????????????????????????????????????????????????? | | ?????????????????????????????????????????????????? | | ?????????????????????????????????????????????????? | | ?????????????????????????????????????????????????? | | ?????????????????????????????????????????????????? | | ?????????????????????????????????????????????????? | | ???????????????????????? ????????????????????????? | | ???????????????????????? ????????????????????????? | | ???????????????????????? ????????????????????????? | | ???????????????????? ??? ????????????????????????? | | ???????????????????? ??? ""??????????????????????? | | ???????????????????# ""? ""??????????????????????? | | ???????????????"?"?? ""? ""??????????????????????? | | ???????????????"T"?? ? ??????????????????????? | | ???????????????"""??#+###s######?????????????????? | | ????????????????????# ??????????????????? | | ???T??????????????### ???????????????????? | | ??????????????????? Y ????????????????????? | | ????????????????????# ####??????????????????? | | ???????????########## #??????????????????? | | ????????# ## # #######+##?????????? | | ????????# k * @ # ?????????? | | ????????#"### % # # = ???????????? | | ??????? #%# #% * # ## """ ?????????????? | | ????# ## ##%%% g """""?????????????? | | ????+ + !=* # # """"" " ?????????? | | ????# ## ## =%% # #???????? | | ???????##+## =%= g k # ########??????????? | | ???????? # # #???????????? | | ???????# # # #???????????? | | ???????#! #### + """ """ #???????????? | | ???????# ## #??### # """ """ #???????????? | | ???????# [! ?# #????# # """ """?????????????? | | ???????# [! ?# #????# # ??????????????? | | ???????# [! ?# #????# #? ??????????????? | | ???????# ?# #????# #? ??????????????? | | ???????# ?####+#????# #?#######?????????????? | | ???????####????????????# #?????????????????????? | | ???????????????????????# #?????????????????????? | | ???????????????????????# #?????????????????????? | | ??????????????????????## ##????????????????????? | | ??????????????????????# ########?????????????? | | ??????????????????????# #?????????????? | | ??????????????????????# < #?????????????? | | ??????????????????????# #?????????????? | | ??????????????????????# ########?????????????? | +----------------------------------------------------+ Best States ------------- Heat Dissipation 42 Energy Generation 10 Energy Capacity 250 Matter Stores 300 Matter Capacity 300 Sight Range 16 Terrain Scan Density 10 Armor Coverage 150 Evasion (%) 55 Item Schematics ----------------- None Robot Schematics ------------------ None Fabricated ------------ Nothing Repaired ---------- Nothing Alien Tech Used ----------------- None Achievements -------------- None Challenges ------------ None Game ------ Seed RiotInertialDetonator Manual? 0 Play Time 00:09:54 Cumulative 9.2 hours Start 2025.08.03 @ 00:37:57 End 2025.08.03 @ 00:56:08 Sessions 1 Manual Loads 0 Difficulty Rogue Special Mode None Game No. 26 Rogue 25 Adventurer 0 Explorer 1 Win Type - Total 0 Types 0/0/0/0/0/0/0/0/0/0 Lore% 7 Gallery% 14 Achievement% 13 Wizard Run 0 Options --------- Layout 1 ASCII 0 Keyboard 0 Movement Mouse Keybinds 0 Fullscreen 1 Font 32/SmallcapsGlow Map View 50x35 Zoom Use 0% Tactical HUD 0 Map Filters NONE Filters NONE Steam 1 RUN: 0170296a-c96b-4d11-8ad0-bc69a154abac